Cogmind - Beta 16.1 @@@ ROGUE MODE // 2026.03.31 @ 03:51:12 Player: coopco Result: Destroyed by D-53 Grenadier with Mini Grenade Launcher Performance ------------- Evolutions (0) 0 Regions Visited (2) 400 Robots Destroyed (2) 10 Value Destroyed (81) 81 Prototype IDs (0) 0 Alien Tech Used (0) 0 Bonus (0) 0 TOTAL SCORE: 491 Bonus ------- None Cogmind --------- Core Integrity 0/250 Matter 300/300 Energy 246/250 System Corruption 4% Temperature Cool (2) Movement Walking (120) Location -10/Mines Parts ------- > --- POWER (1) -------- Ion Engine > --- PROPULSION (2) --- Aluminum Leg Aluminum Leg > --- UTILITY (2) ------ Heat Sink Small Storage Unit > --- WEAPON (2) ------- Medium Laser > --- INVENTORY (8) ---- Light Ion Engine Light Treads Light Treads Aluminum Leg Compact Wheel Compact Matter Pod (150) Compact Matter Pod (150) Peak State ------------ > --- POWER ------------ Ion Engine > --- PROPULSION ------- Compact Wheel Compact Wheel > --- UTILITY ---------- Small Storage Unit Compact Matter Pod > --- WEAPON ----------- Medium Laser Medium Laser > --- INVENTORY -------- Light Ion Engine Light Treads Light Treads Aluminum Leg Aluminum Leg Aluminum Leg Compact Matter Pod Targeting Computer [Rating: 10] Favorites ----------- Power Ion Engine Engine Ion Engine Propulsion Compact Wheel Treads Light Treads Leg Aluminum Leg Wheel Compact Wheel Utility Small Storage Unit Device Sensor Array Storage Small Storage Unit Weapon Medium Laser Energy Gun Medium Laser Build | -11 -10 -10 ------- Run | Yrd Mat Min Slots Evolved . | . . . Power . | . . . Propulsion . | . . . Utility . | . . . Weapon . | . . . Parts Attached 15 | 9 1 5 Power 3 | 2 . 1 Engine 3 | 2 . 1 Core . | . . . Reactor . | . . . Propulsion 6 | 4 . 2 Treads 2 | 2 . . Leg 2 | . . 2 Wheel 2 | 2 . . Hover . | . . . Flight . | . . . Utility 4 | 1 1 2 Device 2 | . 1 1 Storage 2 | 1 . 1 Processor . | . . . Hackware . | . . . Protection . | . . . Artifact . | . . . Weapon 2 | 2 . . Energy Gun 2 | 2 . . Energy Cannon . | . . . Ballistic Gun . | . . . Ballistic Cannon . | . . . Launcher . | . . . Special Weapon . | . . . Impact Weapon . | . . . Slashing Weapon . | . . . Piercing Weapon . | . . . Special Melee Weapon . | . . . Unidentified Prototypes . | . . . Parts Lost 3 | . . 3 Power . | . . . Propulsion 1 | . . 1 Utility 1 | . . 1 Weapon 1 | . . 1 Highest Loss Streak 2 | . . 2 To Critical Strikes . | . . . Average Backups 5 | 2 3 6 Power . | . 1 1 Propulsion 2 | 1 2 4 Utility . | . . 1 Weapon . | . . . Tool/Special . | . . . Unused Backups 3 | . . 3 Power . | . . . Propulsion 1 | . . 1 Utility 2 | . . 2 Weapon . | . . . Tool/Special . | . . . Average Slot Usage (%) 93 | . 96 90 Engine 14 | . 14 14 Leg 3 | . . 6 Wheel 23 | . 28 20 Device 9 | . 11 8 Storage 15 | . 14 17 Energy Gun 24 | . 28 22 Peak Build Rating 10 | 6 7 10 Average Rating 6 | 3 6 7 On Entrance 4 | . 6 7 Avg Prop Armor Cover (%) . | . . . Naked Turns . | . . . Heaviest Build 15 | 14 15 15 Greatest Support 32 | 32 32 32 Greatest Overweight (x) . | . . . Average Overweight (x) . | . . . Largest Inventory Capacity 8 | 8 8 8 Average Capacity 7 | 5 8 8 Most Carried 8 | 5 4 8 Average Carried 5 | 2 3 7 Final Capacity 8 | 8 8 8 Final Carried 7 | 3 4 7 Class Distribution -------------------- 86% | Mutant 13% | Scavenger-Mutant Dominant Class ---------------- Mutant | -10/Materials Mutant | -10/Mines Resources | -11 -10 -10 ----------- Run | Yrd Mat Min Matter Collected 397 | 181 55 161 Remotely . | . . . Salvage Created 161 | . . 161 Parts 5 | . . 5 Haulers Intercepted . | . . . Recyclers Shooed . | . . . Parts Field Recycled . | . . . Retrieved Matter . | . . . Parts Self-Destructed . | . . . Prevented . | . . . Parts Restored . | . . . Kills | -11 -10 -10 ------- Run | Yrd Mat Min Combat Hostiles Destroyed 7 | . . 7 Guns 7 | . . 7 Classes Destroyed 2 | . . 2 Grunt 2 | . . 2 Assembled 5 | . . 5 Best Kill Streak 5 | . . 5 Combat Bots Only 5 | . . 5 Max Kills in Single Turn 1 | . . 1 Gunslinging . | . . . Exploded . | . . . Melee . | . . . Uniques/NPCs Destroyed . | . . . Combat | -11 -10 -10 -------- Run | Yrd Mat Min Hostile Shots Fired 37 | . . 37 Missed 8 | . . 8 Hits 29 | . . 29 Melee 5 | . . 5 Projectile 24 | . . 24 AOE 9 | . . 9 Critical Strikes 1 | . . 1 Damage Taken 630 | . . 630 Core 252 | . . 252 Absorbed by Shields . | . . . Core Remaining (%) 100 | 100 . . Volleys Fired 23 | . 1 22 Largest 2 | . 2 2 Hottest 100 | . 100 100 Shots Fired 32 | . 2 30 Gun 32 | . 2 30 Cannon . | . . . Launcher . | . . . Special . | . . . Kinetic . | . . . Thermal 32 | . 2 30 Explosive . | . . . Electromagnetic . | . . . Robot Hit Streak 8 | . . 8 Robot Miss Streak 1 | . . 1 Penetration Max . | . . . Secondary Targets 1 | . . 1 Max Gunslinging Chain 1 | . . 1 Shots Hit Robots 22 | . . 22 Core Hits 15 | . . 15 Critical Kills . | . . . Critical Parts Destroyed . | . . . Critical Strikes 3 | . . 3 Burn 3 | . . 3 Melee Attacks . | . . . Impact . | . . . Slashing . | . . . Piercing . | . . . Sneak Attacks . | . . . Combat Hostiles . | . . . Follow-up Attacks . | . . . Damage Inflicted 274 | . . 274 Guns 274 | . . 274 Cannons . | . . . Explosions . | . . . Melee . | . . . Ramming . | . . . Kinetic . | . . . Thermal 274 | . . 274 Explosive . | . . . Electromagnetic . | . . . Impact . | . . . Slashing . | . . . Piercing . | . . . Highest Corruption 4 | . . 4 Average Corruption 4 | . . 4 Corruption Purged . | . . . Corruption Blocked . | . . . Effects 2 | . . 2 Data Loss (minor) 1 | . . 1 Alerts 1 | . . 1 Overload Shots . | . . . Overflow Damage . | . . . Projectiles . | . . . Explosions . | . . . Melee . | . . . Knockbacks . | . . . Impact . | . . . Kinetic . | . . . Secondary . | . . . Self-Inflicted Damage . | . . . Shots . | . . . Rammed . | . . . Targets Rammed . | . . . Kicked . | . . . Crushed . | . . . Highest Temperature 363 | . 39 363 Average Temperature 132 | . 24 140 Received Heat Transfer 210 | . . 210 Effects 3 | . . 3 Interference 1 | . . 1 Matter Decay 1 | . . 1 Damage (minor) 1 | . . 1 Siege Activations . | . . . Martial Activations . | . . . Shielding Activations . | . . . Robots Disrupted . | . . . Combat Hostiles . | . . . Robots Corrupted . | . . . Combat Hostiles . | . . . Parts Fried . | . . . Impact Corruptions . | . . . Robots Melted . | . . . Combat Hostiles . | . . . Parts Melted 1 | . . 1 Heat Transferred 1036 | . . 1036 Parts Sabotaged . | . . . Parts Stolen . | . . . Parts Stripped . | . . . Power Chain Reactions . | . . . Alert | -11 -10 -10 ------- Run | Yrd Mat Min Maximum Alert Level . | . . . Low Security (%) 100 | 100 100 100 Level 1 . | . . . Level 2 . | . . . Level 3 . | . . . Level 4 . | . . . Level 5 . | . . . High Security . | . . . Max Security . | . . . Peak Influence 50 | . . 50 Initial . | . . . Average 7 | . . 15 Influence Increases 65 | . . 65 Destroy 0b10 Robot/C 40 | . . 40 Destroy Leader 10 | . . 10 Lose Combat Pursuer 15 | . . 15 Influence Decreases 65 | . . 65 Time Decay 50 | . . 50 Lost Part 15 | . . 15 Squads Dispatched . | . . . Investigation . | . . . Extermination . | . . . Reinforcement . | . . . Assault . | . . . Garrison . | . . . Intercept . | . . . Searches Triggered . | . . . Construction Impeded . | . . . Haulers Reinforced . | . . . Active Scanning Responses . | . . . Cargo Convoy Interrupts . | . . . Stealth | -11 -10 -10 --------- Run | Yrd Mat Min Distress Signals 1 | . . 1 Communications Jammed . | . . . Distress Signals . | . . . Times Spotted 15 | . . 15 Peak Tracking Total 8 | . . 8 Tactical Retreats 1 | . . 1 Traps | -11 -10 -10 ------- Run | Yrd Mat Min Traps Triggered . | . . . Indirectly . | . . . Trap Hack Attempts . | . . . Triggered . | . . . Disarmed . | . . . Reprogrammed . | . . . Reused . | . . . Traps Extracted . | . . . Installed . | . . . Triggered . | . . . Machines | -11 -10 -10 ---------- Run | Yrd Mat Min Machines Disabled . | . . . Max in Single Turn . | . . . Machines Repaired . | . . . Machines Dismantled . | . . . Machines Sabotaged . | . . . Overloaded Fab Kills . | . . . Hacking | -11 -10 -10 --------- Run | Yrd Mat Min Machines Accessed . | . . . Terminals . | . . . Fabricators . | . . . Repair Stations . | . . . Recycling Units . | . . . Scanalyzers . | . . . Garrison Access . | . . . Total Hacks . | . . . Successful . | . . . Failed . | . . . Catastrophic . | . . . Database Lockouts . | . . . Manual . | . . . Terminals . | . . . Fabricators . | . . . Repair Stations . | . . . Recycling Units . | . . . Scanalyzers . | . . . Garrison Access . | . . . Terminal Hacks . | . . . Fabricator Hacks . | . . . Repair Station Hacks . | . . . Recycling Unit Hacks . | . . . Scanalyzer . | . . . Garrison Access Hacks . | . . . Unauthorized Hacks . | . . . Terminals . | . . . Fabricators . | . . . Repair Stations . | . . . Recycling Units . | . . . Scanalyzers . | . . . Garrison Access . | . . . Data Cores Recovered . | . . . Used . | . . . Hacking Detections . | . . . Full Trace Events . | . . . Feedback Events . | . . . Feedback Blocked . | . . . Robot Schematics Acquired . | . . . Robots Built . | . . . Authchips . | . . . Time . | . . . Total Robot Build Rating . | . . . Part Schematics Acquired . | . . . Parts Built . | . . . Authchips . | . . . Time . | . . . Total Part Build Rating . | . . . Part Studies Acquired . | . . . Parts Repaired . | . . . Time . | . . . Parts Recycled . | . . . Recycled Matter . | . . . Retrieved Matter . | . . . Retrieved Components . | . . . Parts Scanalyzed . | . . . Part Schematics Acquired . | . . . Parts Damaged . | . . . Bothacking | -11 -10 -10 ------------ Run | Yrd Mat Min Used RIF Installer . | . . . Robots Hacked . | . . . Non-combat . | . . . Combat . | . . . Robot Hacks Applied . | . . . Relay Couplers Released . | . . . Fabnet Peak Effective % . | . . . Robots Rewired . | . . . Allies Hacked . | . . . Hacks Repelled . | . . . Allies | -11 -10 -10 -------- Run | Yrd Mat Min Total Allies . | . . . Largest Group . | . . . Highest-Rated Group . | . . . Highest-Rated Ally . | . . . Total Orders . | . . . Ally Attacks . | . . . Total Damage . | . . . Kills . | . . . Allies Corrupted . | . . . Allies Melted . | . . . Intel | -11 -10 -10 ------- Run | Yrd Mat Min Active Infowar (turns) 115 | . 111 4 Sensors 115 | . 111 4 Robot Analysis Total . | . . . Derelict Logs Recovered . | . . . Drone Launches . | . . . Drone Recoveries . | . . . Exploration | -11 -10 -10 ------------- Run | Yrd Mat Min Turns Passed 367 | 67 129 171 Spaces Moved 268 | 47 124 97 Core 13 | 13 . . Treads . | . . . Legs 32 | . . 32 Wheels 223 | 34 124 65 Hover . | . . . Flight . | . . . Fastest Speed 50 | 50 100 100 Average Speed 99 | 86 100 106 Slowest Speed 120 | 100 100 120 Overloaded Moves . | . . . Propulsion Burnouts . | . . . Robots Hopped . | . . . Potential Cave-ins . | . . . Cave-ins Triggered . | . . . Exploration Rate (%) 8 | 4 12 9 Regions Visited 2 Branch Regions 1 Pre-discovered Areas . | . . . Known Exits Taken . | . . . Unknown Exits Taken 2 | 1 1 . Scrap Searched . | . . . Spaces Dug . | . . . Terrain Destroyed . | . . . Melee . | . . . Projectile . | . . . AOE . | . . . Terrain Rammed . | . . . Walls Destroyed . | . . . Machines Disabled . | . . . Actions | -11 -10 -10 --------- Run | Yrd Mat Min Total 336 | 75 127 134 Wait 8 | 6 . 2 Move 266 | 46 123 97 Hop . | . . . Pick Up 19 | 11 2 6 Fast Attach 1 | . . 1 Attach 10 | 8 1 1 Detach . | . . . Swap 4 | 1 . 3 Drop 5 | 3 . 2 Fire 23 | . 1 22 Melee . | . . . Ram . | . . . Kick . | . . . Crush . | . . . Escape Stasis . | . . . Rewire . | . . . Trap . | . . . Miscellaneous . | . . . Route ------- -11/Scrapyard -10/Materials -10/Mines History --------- Turn | Location | Event 37 | -11/Scrapyard | Discovered new exit (range 15) 68 | -11/Scrapyard | Entered Materials 68 | -10/Materials | Discovered new exit (range 8) 197 | -10/Materials | Entered Mines 232 | -10/Mines | Assembled infested the area 237 | -10/Mines | Assisted by a Guerilla fighting off Assembled 315 | -10/Mines | Build established: Mutant 343 | -10/Mines | Core integrity fell below 50% 366 | -10/Mines | Core integrity fell below 20% 368 | -10/Mines | Destroyed by D-53 Grenadier with Mini Grenade Launcher Last Messages --------------- 00273_ Dropped Targeting Computer. 00274_ Acquired Heat Sink. 00294_ Med. Laser destroyed. 00294_ System corrupted by crushing effect (+4). 00300_ as-37023 suffers critical hit (Burn). 00301_ Knocked back. 00302_ as-37023 destroyed. 00309_ Com. Wheel destroyed. 00309_ as-64890 suffers critical hit (Burn). 00309_ as-64890 destroyed. 00316_ as-28626 destroyed. 00318_ Critical hit (Burn: +80). 00320_ as-13452 destroyed. 00323_ Acquired 10 matter. 00333_ as-88247 destroyed. 00339_ System corrupted: IFF burst signal emitted. 00359_ System corrupted: Component data lost. 00363_ R-06 Scavenger collects Bore Cannon. 00368_ The unstable cave ceiling collapses. Map ----- +----------------------------------------------------+ | | | | | | | | | | | | | | | | | | | | | | | | | | | | | | | | | | | | | ????????# ####??????????????????????? | | ??????### ##?????????????????????? | | ??????# # #?????????????????????? | | ?????## ###???????????????????? | | ????## #???????????????????? | | ????# #???????????????????? | | ????# d ! #???????????????????? | | ????## @ #???????????????????? | | ?????#%# !! #???????????????????? | | ????## ## #???????????????????? | | ????# ## #???????????????????? | | ????# # ####???????????????????? | | ???# #??????????????????????? | | ???# # d #??????????????????????? | | ???## % ##??????????????????????? | | ????# #???????????????????????? | | ????# # #???????????????????????? | | ????#### #??????????????????????? | | ??????# !%! #????????????????????? | | ??????# r ###????????????????????? | | ??????### ?????????????????????? | | ????????##; = ???????????????????? | | ?????????#" ??????????????????? | | ?????????### % ?????????????????? | | ???????????? % ????????????????? | | ????????????= ????????????????? | | ????????????% #???????????????? | | ????????????= # # ##???????????????? | | ???????????? #######?????????????????? | | ???????????? ????????????????????????? | | ?????????????????????????????????????? | | ?????????????????????????????????????? | +----------------------------------------------------+ Best States ------------- Heat Dissipation 35 Energy Generation 10 Energy Capacity 250 Matter Stores 450 Matter Capacity 450 Sight Range 16 Robot Scan Range 14 Terrain Scan Density 10 Evasion (%) 50 Item Schematics ----------------- None Robot Schematics ------------------ None Fabricated ------------ Nothing Repaired ---------- Nothing Studied --------- None Alien Tech Used ----------------- None Achievements -------------- DATA ERROR: Steam Global Achievement% Challenges ------------ None Game ------ Seed NeutrinoPropulsionCutter Manual? 0 Play Time 00:10:44 Cumulative 6.6 hours Start 2026.03.31 @ 03:38:48 End 2026.03.31 @ 03:51:12 Sessions 1 Manual Loads 0 Difficulty Rogue Special Mode None Game No. 15 Rogue 15 Adventurer 0 Explorer 0 Win Type - Total 0 Types 0/0/0/0/0/0/0/0/0/0 Lore% 8 Gallery% 16 Achievement% 15 Wizard Run 0 Options --------- Layout 1 ASCII 0 Keyboard 0 Movement Mouse Keybinds 0 Fullscreen 2 Font 24/Smallcaps Map View 50x35 Zoom Use 0% Tactical HUD 1 Map Filters NONE Filters NONE Steam 1 RUN: 6469f0dd-6488-48b6-bc78-f2e041d85a21